bitfinex/quotes_BTCUSD_20250608
["timestamp","ask_amount","ask_price","bid_price","bid_amount"]
[1749382807919,0.29707478,105700.0,105690.0,0.42077699]
[1749382808128,0.29707478,105700.0,105690.0,0.42077773]
[1749382808336,0.29707478,105700.0,105690.0,0.42077774]
[1749382808697,0.29707478,105700.0,105690.0,0.41416]
[1749382808868,0.29707478,105700.0,105690.0,0.42077773]
[1749382809073,0.29707478,105700.0,105690.0,0.41416]
[1749382809296,0.29707478,105700.0,105690.0,0.42077778]
[1749382809501,0.29707478,105700.0,105690.0,0.42077779]
[1749382809725,0.29707478,105700.0,105690.0,0.41416]
[1749382810047,0.29707478,105700.0,105690.0,0.42077782]
[1749382810410,0.29707478,105700.0,105690.0,0.42069986]
[1749382811250,0.29707478,105700.0,105690.0,0.42069973]
[1749382811459,0.29707478,105700.0,105690.0,0.41408]
[1749382811659,0.29707478,105700.0,105690.0,0.42069973]
[1749382811840,0.29707478,105700.0,105690.0,0.41408]
[1749382812497,0.29707478,105700.0,105690.0,0.42069973]
[1749382812702,0.29707478,105700.0,105690.0,0.41408]
[1749382813120,0.29707478,105700.0,105690.0,0.42069988]
[1749382813648,0.29707478,105700.0,105690.0,0.03882021]
[1749382813868,0.29707478,105700.0,105690.0,0.41404]
[1749382814484,0.29707478,105700.0,105690.0,0.42066016]
[1749382814885,0.29707478,105700.0,105690.0,0.41404]
[1749382815133,0.29707478,105700.0,105690.0,0.42066016]
[1749382816127,0.29707478,105700.0,105690.0,0.41404]
[1749382816328,0.29707478,105700.0,105690.0,0.42066016]
[1749382816550,0.29707478,105700.0,105690.0,0.41404]
[1749382817120,0.29707478,105700.0,105690.0,0.42066016]
[1749382817321,0.29707478,105700.0,105690.0,0.41404]
[1749382817684,0.29707478,105700.0,105690.0,0.42065996]
[1749382818110,0.29707478,105700.0,105690.0,0.03881996]
[1749382818287,0.29707478,105700.0,105690.0,0.40506035]
[1749382818462,0.29707478,105700.0,105690.0,0.40506048]
[1749382818673,0.29707478,105700.0,105690.0,0.38846048]
[1749382819078,0.29707478,105700.0,105690.0,0.38845953]
[1749382819475,0.29707478,105700.0,105690.0,0.38845959]
[1749382819686,0.29707478,105700.0,105690.0,0.38845962]
[1749382819898,0.29707478,105700.0,105690.0,0.38184]
[1749382820137,0.29707478,105700.0,105690.0,0.38845958]
[1749382820764,0.29707478,105700.0,105690.0,0.40415958]
[1749382820963,0.29707478,105700.0,105690.0,0.41935958]
[1749382821136,0.29707478,105700.0,105690.0,0.41935873]
[1749382821337,0.29707478,105700.0,105690.0,0.41274]
[1749382821540,0.29707478,105700.0,105690.0,0.4193588]
[1749382821735,0.29707478,105700.0,105690.0,0.41274]
[1749382822377,0.29707478,105700.0,105690.0,0.41935868]
[1749382822579,0.32549178,105700.0,105690.0,0.41935868]
[1749382822782,0.32549178,105700.0,105690.0,0.41935829]
[1749382822984,0.32549178,105700.0,105690.0,0.41274]
[1749382823192,0.32549178,105700.0,105690.0,0.41935826]
[1749382823403,0.32549178,105700.0,105690.0,0.41935828]
[1749382823625,0.32549178,105700.0,105690.0,0.41935825]
[1749382824845,0.32549178,105700.0,105690.0,0.41274]
[1749382824972,0.32549178,105700.0,105690.0,0.41935827]
[1749382825416,0.32549178,105700.0,105690.0,0.41935825]
[1749382825620,0.32549178,105700.0,105690.0,0.41274]
[1749382826173,0.32549178,105700.0,105690.0,0.41935816]
[1749382826719,0.32549178,105700.0,105690.0,0.42597671]
[1749382827342,0.32549178,105700.0,105690.0,0.42597635]
[1749382827504,0.32549178,105700.0,105690.0,0.42597646]
[1749382827706,0.32549178,105700.0,105690.0,0.41935832]
[1749382827917,0.32549178,105700.0,105690.0,0.42597645]
[1749382828122,0.32549178,105700.0,105690.0,0.42597644]
[1749382828322,0.32549178,105700.0,105690.0,0.42597642]
[1749382828593,0.32549178,105700.0,105690.0,0.41935832]
[1749382828946,0.32549178,105700.0,105690.0,0.42597642]
[1749382829374,0.32549178,105700.0,105690.0,0.41935832]
[1749382829580,0.32549178,105700.0,105690.0,0.42597641]
[1749382830514,0.32549178,105700.0,105690.0,0.4259764]
[1749382830732,0.32549178,105700.0,105690.0,0.41935832]
[1749382830942,0.32549178,105700.0,105690.0,0.42597639]
[1749382831113,0.32549178,105700.0,105690.0,0.42597641]
[1749382831951,0.32549178,105700.0,105690.0,0.41935832]
[1749382832837,0.32549178,105700.0,105690.0,0.42597678]
[1749382833806,0.32549178,105700.0,105690.0,0.42597691]
[1749382833987,0.32549178,105700.0,105690.0,0.42597689]
[1749382834181,0.32549178,105700.0,105690.0,0.41935832]
[1749382834593,0.32549178,105700.0,105690.0,0.4259769]
[1749382835181,0.32549178,105700.0,105690.0,0.42597713]
[1749382835389,0.32549178,105700.0,105690.0,0.41935832]
[1749382835771,0.32549178,105700.0,105690.0,0.42597732]
[1749382836003,0.32549178,105700.0,105690.0,0.42597724]
[1749382836208,0.32549178,105700.0,105690.0,0.42597715]
[1749382836600,0.32549178,105700.0,105690.0,0.4259773]
[1749382836978,0.32549178,105700.0,105690.0,0.3358973]
[1749382837186,0.32549178,105700.0,105690.0,0.3358972]
[1749382837385,0.32549178,105700.0,105690.0,0.335897]
[1749382837623,0.32549178,105700.0,105690.0,0.33589687]
[1749382837829,0.32549178,105700.0,105690.0,0.32927832]
[1749382838066,0.32549178,105700.0,105690.0,0.33589687]
[1749382838843,0.32549178,105700.0,105690.0,0.33589703]
[1749382839144,0.32549178,105700.0,105690.0,0.32927832]
[1749382839333,0.32549178,105700.0,105690.0,0.33589712]
[1749382840859,0.32549178,105700.0,105690.0,0.33589692]
[1749382841057,0.32549178,105700.0,105690.0,0.32927832]
[1749382841261,0.32549178,105700.0,105690.0,0.33589699]
[1749382841409,0.32549178,105700.0,105690.0,0.3358971]
[1749382842452,0.32549178,105700.0,105690.0,0.3358973]
[1749382842671,0.32549178,105700.0,105690.0,0.32927832]
[1749382842909,0.32549178,105700.0,105690.0,0.33589731]
[1749382843148,0.32549178,105700.0,105690.0,0.32927832]
[1749382843566,0.32549178,105700.0,105690.0,0.33589732]
[1749382844498,0.32549178,105700.0,105690.0,0.32927832]
[1749382844732,0.32549178,105700.0,105690.0,0.33589875]
[1749382844942,0.32549178,105700.0,105690.0,0.33589883]
[1749382846052,0.32549178,105700.0,105690.0,0.32927832]
[1749382846249,0.32549178,105700.0,105690.0,0.33589904]
[1749382847764,0.32549178,105700.0,105690.0,0.3358991]
[1749382848390,0.32549178,105700.0,105690.0,0.32927832]
[1749382849043,0.32549178,105700.0,105690.0,0.33589921]
[1749382849699,0.32549178,105700.0,105690.0,0.32927832]
[1749382849858,0.32549178,105700.0,105690.0,0.3358992]
[1749382850050,0.32549178,105700.0,105690.0,0.32927832]
[1749382850252,0.32549178,105700.0,105690.0,0.33589921]
[1749382851251,0.32549178,105700.0,105690.0,0.32927832]
[1749382851452,0.32549178,105700.0,105690.0,0.33589863]
[1749382851826,0.32549178,105700.0,105690.0,0.33589839]
[1749382852008,0.32549178,105700.0,105690.0,0.33589836]
[1749382852166,0.32549178,105700.0,105690.0,0.32927832]
[1749382852380,0.32549178,105700.0,105690.0,0.33589834]
[1749382853223,0.32549178,105700.0,105690.0,0.3358966]
[1749382853361,0.32549178,105700.0,105690.0,0.41927832]
[1749382854050,0.32549178,105700.0,105690.0,0.42589661]
[1749382855074,0.32549178,105700.0,105690.0,0.41927832]
[1749382855325,0.32549178,105700.0,105690.0,0.03751832]
[1749382855525,0.32549178,105700.0,105690.0,0.42565709]
[1749382855723,0.32549178,105700.0,105690.0,0.41903832]
[1749382855885,0.32549178,105700.0,105690.0,0.42565727]
[1749382856736,0.32549178,105700.0,105690.0,0.41903832]
[1749382856948,0.32549178,105700.0,105690.0,0.42565735]
[1749382857261,0.32549178,105700.0,105690.0,0.41903832]
[1749382857672,0.32549178,105700.0,105690.0,0.42565735]
[1749382858719,0.32549178,105700.0,105690.0,0.42565729]
[1749382859074,0.32549178,105700.0,105690.0,0.41903832]
[1749382859514,0.32549178,105700.0,105690.0,0.42565728]
[1749382860208,0.32549178,105700.0,105690.0,0.42565743]
[1749382860551,0.32549178,105700.0,105690.0,0.41903832]
[1749382860667,0.32549178,105700.0,105690.0,0.42565744]
[1749382860869,0.32549178,105700.0,105690.0,0.41903832]
[1749382861300,0.32549178,105700.0,105690.0,0.42565744]
[1749382861704,0.32549178,105700.0,105690.0,0.42565726]
[1749382862360,0.32549178,105700.0,105690.0,0.42565727]
[1749382862566,0.32549178,105700.0,105690.0,0.41903832]
[1749382862969,0.32549178,105700.0,105690.0,0.42565727]
[1749382863116,0.32549178,105700.0,105690.0,0.41903832]
[1749382863318,0.32549178,105700.0,105690.0,0.42565774]
[1749382863927,0.32549178,105700.0,105690.0,0.42565784]
[1749382864394,0.32549178,105700.0,105690.0,0.42565788]
[1749382864596,0.32549178,105700.0,105690.0,0.42565792]
[1749382865490,0.32549178,105700.0,105690.0,0.41903832]
[1749382865939,0.32549178,105700.0,105690.0,0.42565788]
[1749382866147,0.32549178,105700.0,105690.0,0.41903832]
[1749382866353,0.32549178,105700.0,105690.0,0.42565805]
[1749382867337,0.32549178,105700.0,105690.0,0.42565802]
[1749382867583,0.29707478,105700.0,105690.0,0.42565734]
[1749382867794,0.29707478,105700.0,105690.0,0.4256574]
[1749382868001,0.29707478,105700.0,105690.0,0.42565721]
[1749382869191,0.29707478,105700.0,105690.0,0.41903832]
[1749382869418,0.29707478,105700.0,105690.0,0.42565669]
[1749382869901,0.29707478,105700.0,105690.0,0.41903832]
[1749382870132,0.29707478,105700.0,105690.0,0.42565673]
[1749382870337,0.29707478,105700.0,105690.0,0.4256567]
[1749382871037,0.29707478,105700.0,105690.0,0.42565675]
[1749382871280,0.29707478,105700.0,105690.0,0.42565669]
[1749382871492,0.29707478,105700.0,105690.0,0.41903832]
[1749382871782,0.29707478,105700.0,105690.0,0.42565668]
[1749382872278,0.29707478,105700.0,105690.0,0.42565648]
[1749382872905,0.29707478,105700.0,105690.0,0.41903832]
[1749382873226,0.29707478,105700.0,105690.0,0.42565646]
[1749382874369,0.29707478,105700.0,105690.0,0.42565625]
[1749382875164,0.29707478,105700.0,105690.0,0.41903832]
[1749382875372,0.29707478,105700.0,105690.0,0.42565625]
[1749382875665,0.29707478,105700.0,105690.0,0.41903832]
[1749382875870,0.29707478,105700.0,105690.0,0.42565625]
[1749382876040,0.29707478,105700.0,105690.0,0.42565631]
[1749382876240,0.29707478,105700.0,105690.0,0.42565626]
[1749382876704,0.29707478,105700.0,105690.0,0.41903832]
[1749382877140,0.29707478,105700.0,105690.0,0.42565639]
[1749382877665,0.29707478,105700.0,105690.0,0.42565654]
[1749382877837,0.29707478,105700.0,105690.0,0.41903832]
[1749382878220,0.29707478,105700.0,105690.0,0.42565654]
[1749382878621,0.29707478,105700.0,105690.0,0.41903832]
[1749382878819,0.29707478,105700.0,105690.0,0.42565654]
[1749382879705,0.29707478,105700.0,105690.0,0.41903832]
[1749382879899,0.29707478,105700.0,105690.0,0.42565668]
[1749382880111,0.29707478,105700.0,105690.0,0.41903832]
[1749382880492,0.29707478,105700.0,105690.0,0.4256567]
[1749382881436,0.29707478,105700.0,105690.0,0.42565666]
[1749382881787,0.29707478,105700.0,105690.0,0.42565668]
[1749382881952,0.29707478,105700.0,105690.0,0.03751832]
[1749382882155,0.29707478,105700.0,105690.0,0.42537711]
[1749382882457,0.29707478,105700.0,105690.0,0.42537719]
[1749382882856,0.29707478,105700.0,105690.0,0.42537706]
[1749382883058,0.29707478,105700.0,105690.0,0.41875832]
[1749382883770,0.29707478,105700.0,105690.0,0.42537717]
[1749382883977,0.29707478,105700.0,105690.0,0.42537718]
[1749382884549,0.29707478,105700.0,105690.0,0.42537733]
[1749382885002,0.29707478,105700.0,105690.0,0.41875832]
[1749382885199,0.29707478,105700.0,105690.0,0.42537733]
[1749382885420,0.29707478,105700.0,105690.0,0.41875832]
[1749382885759,0.29707478,105700.0,105690.0,0.04413732]
[1749382885948,0.29707478,105700.0,105690.0,0.42537732]
[1749382886588,0.29569148,105700.0,105690.0,0.42537751]
[1749382886994,0.29569148,105700.0,105690.0,0.41875832]
[1749382887205,0.29569148,105700.0,105690.0,0.42537751]
[1749382887811,0.29569148,105700.0,105690.0,0.41875832]
[1749382888023,0.29569148,105700.0,105690.0,0.4253775]
[1749382889590,0.29569148,105700.0,105690.0,0.0441375]
[1749382889834,0.29569148,105700.0,105690.0,0.40351832]
[1749382890043,0.29569148,105700.0,105690.0,0.41013748]
[1749382890459,0.29569148,105700.0,105690.0,0.39443757]
[1749382891906,0.29569148,105700.0,105690.0,0.38781832]
[1749382892350,0.29569148,105700.0,105690.0,0.39443778]
[1749382892973,0.29569148,105700.0,105690.0,0.4259378]
[1749382893531,0.29569148,105700.0,105690.0,0.41931832]
[1749382893935,0.29569148,105700.0,105690.0,0.42593784]
[1749382894252,0.29569148,105700.0,105690.0,0.41931832]
[1749382894795,0.29569148,105700.0,105690.0,0.04473784]
[1749382894995,0.29569148,105700.0,105690.0,0.42593784]
[1749382895409,0.29569148,105700.0,105690.0,0.42593751]
[1749382896006,0.29569148,105700.0,105690.0,0.4259375]
[1749382896192,0.29569148,105700.0,105690.0,0.42593748]
[1749382896333,0.29569148,105700.0,105690.0,0.41931832]
[1749382896534,0.29569148,105700.0,105690.0,0.42593738]
[1749382897153,0.29569148,105700.0,105690.0,0.41931832]
[1749382897393,0.29569148,105700.0,105690.0,0.42593639]
[1749382897738,0.29569148,105700.0,105690.0,0.41931832]
[1749382897937,0.29569148,105700.0,105690.0,0.42593639]
[1749382899044,0.29569148,105700.0,105690.0,0.42593644]
[1749382899659,0.29569148,105700.0,105690.0,0.41931832]
[1749382899908,0.29569148,105700.0,105690.0,0.6151691]
[1749382899909,0.30515194,105700.0,105690.0,0.6151691]
[1749382900117,0.2182131,105700.0,105690.0,0.63409209]
[1749382900357,0.2182131,105700.0,105690.0,0.63408837]
[1749382900556,0.2182131,105700.0,105690.0,0.62747397]
[1749382900757,0.2182131,105700.0,105690.0,0.63408797]
[1749382900936,0.20875264,105700.0,105690.0,0.63408797]
[1749382901145,0.20875264,105700.0,105690.0,0.62747397]
[1749382901752,0.20875264,105700.0,105690.0,0.63408799]
[1749382902313,0.20875264,105700.0,105690.0,0.64354925]
[1749382902464,0.20875264,105700.0,105690.0,0.63693524]
[1749382902668,0.20875264,105700.0,105690.0,0.64354925]
[1749382902870,0.35146029,105700.0,105690.0,0.65300988]
[1749382903049,0.37038086,105700.0,105690.0,0.64639624]
[1749382903250,0.37038086,105700.0,105690.0,0.65300974]
[1749382903875,0.37038086,105700.0,105690.0,0.64639624]
[1749382904282,0.37038086,105700.0,105690.0,0.65300911]
[1749382904477,0.3798415,105700.0,105690.0,0.64639624]
[1749382904674,0.3798415,105700.0,105690.0,0.65300911]
[1749382904872,0.3798415,105700.0,105690.0,0.64639624]
[1749382905077,0.3798415,105700.0,105690.0,0.65300911]
[1749382905951,0.3798415,105700.0,105690.0,0.64639624]
[1749382906157,0.3798415,105700.0,105690.0,0.65300549]
[1749382906366,0.3798415,105700.0,105690.0,0.64639624]
[1749382906588,0.3798415,105700.0,105690.0,0.65300549]
[1749382906796,0.3798415,105700.0,105690.0,0.64639624]
[1749382907010,0.3798415,105700.0,105690.0,0.65300549]
[1749382907728,0.3798415,105700.0,105690.0,0.6530042]
[1749382908029,0.3798415,105700.0,105690.0,1.13695624]
[1749382908030,0.37038086,105700.0,105690.0,1.13695624]
[1749382908176,0.37038086,105700.0,105690.0,1.14356418]
[1749382908378,0.37038086,105700.0,105690.0,1.14356417]
[1749382909178,0.37038086,105700.0,105690.0,1.14356275]
[1749382909938,0.36092031,105700.0,105690.0,1.14356274]
[1749382910260,0.37038077,105700.0,105690.0,1.14356274]
[1749382910588,0.36092022,105700.0,105690.0,1.14356263]
[1749382910780,0.37038059,105700.0,105690.0,1.14356263]
[1749382911196,0.37984114,105700.0,105690.0,1.1435611]
[1749382911606,0.37984114,105700.0,105690.0,1.13695624]
[1749382911806,0.37038059,105700.0,105690.0,1.1435611]
[1749382912006,0.37984114,105700.0,105690.0,1.1435611]
[1749382912615,0.37984114,105700.0,105690.0,1.14356106]
[1749382913024,0.37984114,105700.0,105690.0,1.13695624]
[1749382913199,0.37038059,105700.0,105690.0,1.14356106]
[1749382913641,0.37038059,105700.0,105690.0,1.13695624]
[1749382914052,0.37038059,105700.0,105690.0,1.14356094]
[1749382914433,0.36092022,105700.0,105690.0,1.13695624]
[1749382914635,0.37038051,105700.0,105690.0,1.14356025]
[1749382914921,0.35146002,105700.0,105690.0,1.13695624]
[1749382915119,0.342,105700.0,105690.0,1.14356022]
[1749382915330,0.35146002,105700.0,105690.0,1.14356022]
[1749382915739,0.36092013,105700.0,105690.0,1.14356022]
[1749382916164,0.37038042,105700.0,105690.0,1.14356022]
[1749382916365,0.37984079,105700.0,105690.0,1.14355962]
[1749382916570,0.37984079,105700.0,105690.0,1.13695624]
[1749382916782,0.37984079,105700.0,105690.0,1.14355999]
[1749382917165,0.37984079,105700.0,105690.0,1.13671624]
[1749382917365,0.37984079,105700.0,105690.0,1.14331974]
[1749382917571,0.37984079,105700.0,105690.0,1.1433197]
[1749382917780,0.38930134,105700.0,105690.0,1.1433197]
[1749382917985,0.38930134,105700.0,105690.0,1.13671624]
[1749382918510,0.38930134,105700.0,105690.0,1.1433197]
[1749382918730,0.38930134,105700.0,105690.0,1.14331969]
[1749382918900,0.38930134,105700.0,105690.0,1.13671624]
[1749382919103,0.38930134,105700.0,105690.0,1.14331969]
[1749382919647,0.38930134,105700.0,105690.0,1.1433197]
[1749382920066,0.38930134,105700.0,105690.0,1.14332111]
[1749382920747,0.38930134,105700.0,105690.0,0.75575624]
[1749382920954,0.38930134,105700.0,105690.0,1.14332111]
[1749382921113,0.38930134,105700.0,105690.0,1.13671624]
[1749382921272,0.38930134,105700.0,105690.0,1.14332129]
[1749382921473,0.38930134,105700.0,105690.0,1.13671624]
[1749382922490,0.38930134,105700.0,105690.0,1.14332129]
[1749382922722,0.38930134,105700.0,105690.0,1.13671624]
[1749382922925,0.38930134,105700.0,105690.0,1.14332129]
[1749382923211,0.38930134,105700.0,105690.0,1.14332132]
[1749382923495,0.38930134,105700.0,105690.0,1.13671624]
[1749382924125,0.38930134,105700.0,105690.0,1.14332132]
[1749382924300,0.38930134,105700.0,105690.0,1.1433215]
[1749382924549,0.38930134,105700.0,105690.0,1.14332153]
[1749382924754,0.38930134,105700.0,105690.0,1.13671624]
[1749382925164,0.38930134,105700.0,105690.0,1.14332827]
[1749382925976,0.38930134,105700.0,105690.0,1.13671624]
[1749382926419,0.38930134,105700.0,105690.0,1.14332827]
[1749382926599,0.38930134,105700.0,105690.0,1.14332834]
[1749382926833,0.38930134,105700.0,105690.0,1.14332837]
[1749382927037,0.38930134,105700.0,105690.0,1.13671624]
[1749382927447,0.38930134,105700.0,105690.0,1.14332837]
[1749382927646,0.38930134,105700.0,105690.0,1.14332838]
[1749382927926,0.38930134,105700.0,105690.0,1.13671624]
[1749382928084,0.38930134,105700.0,105690.0,1.14332838]
[1749382928291,0.38930134,105700.0,105690.0,1.14332837]
[1749382928493,0.38930134,105700.0,105690.0,1.13671624]
[1749382929253,0.38930134,105700.0,105690.0,1.14332838]
[1749382929656,0.38930134,105700.0,105690.0,0.75575624]
[1749382929797,0.38930134,105700.0,105690.0,0.53529061]
[1749382929798,0.57851733,105700.0,105690.0,0.53529061]
[1749382930058,0.55013612,105700.0,105690.0,0.52867832]
[1749382930259,0.55013612,105700.0,105690.0,0.90955832]
[1749382931063,0.55013612,105700.0,105690.0,0.91617409]
[1749382931264,0.55013612,105700.0,105690.0,0.53529409]
[1749382931470,0.55013612,105700.0,105690.0,0.91617356]
[1749382931846,0.55013612,105700.0,105690.0,0.91617357]
[1749382932045,0.55013612,105700.0,105690.0,0.90955832]
[1749382932366,0.55013612,105700.0,105690.0,0.89433832]
[1749382932572,0.55013612,105700.0,105690.0,0.88455356]
[1749382933003,0.55013612,105700.0,105690.0,0.89403832]
[1749382933222,0.55013612,105700.0,105690.0,0.90065348]
[1749382933430,0.55013612,105700.0,105690.0,0.90065349]
[1749382933738,0.55013612,105700.0,105690.0,0.88455349]
[1749382933980,0.55013612,105700.0,105690.0,0.88455366]
[1749382934162,0.55013612,105700.0,105690.0,0.87793832]
[1749382934483,0.55013612,105700.0,105690.0,0.88455365]
[1749382935317,0.55013612,105700.0,105690.0,0.88455357]
[1749382935519,0.55013612,105700.0,105690.0,0.88455361]
[1749382935722,0.55013612,105700.0,105690.0,0.87793832]
[1749382935929,0.55013612,105700.0,105690.0,0.88455361]
[1749382936131,0.55013612,105700.0,105690.0,0.88455356]
[1749382936258,0.55013612,105700.0,105690.0,0.87793832]
[1749382937014,0.55013612,105700.0,105690.0,0.49717832]
[1749382937247,0.55013612,105700.0,105690.0,0.88451244]
[1749382937372,0.56633612,105700.0,105690.0,0.88451248]
[1749382937574,0.55013612,105700.0,105690.0,0.88451249]
[1749382937802,0.55013612,105700.0,105690.0,0.87789832]
[1749382938244,0.55013612,105700.0,105690.0,0.58685832]
[1749382938418,0.55013612,105700.0,105690.0,0.87789832]
[1749382938620,0.55013612,105700.0,105690.0,0.88451281]
[1749382938825,0.55013612,105700.0,105690.0,0.88451211]
[1749382939140,0.55013612,105700.0,105690.0,0.88451206]
[1749382939549,0.55013612,105700.0,105690.0,0.87789832]
[1749382939719,0.55013612,105700.0,105690.0,0.88451206]
[1749382940237,0.55013612,105700.0,105690.0,0.38733832]
[1749382940440,0.55013612,105700.0,105690.0,0.39395206]
[1749382940865,0.6465356,105700.0,105690.0,0.39395205]
[1749382941032,0.6465356,105700.0,105690.0,0.38733832]
[1749382941622,0.6465356,105700.0,105690.0,0.39395107]
[1749382942411,0.6465356,105700.0,105690.0,0.38733832]
[1749382942626,0.6465356,105700.0,105690.0,0.39395107]
[1749382943571,0.6465356,105700.0,105690.0,0.38733832]
[1749382944028,0.6465356,105700.0,105690.0,0.39395107]
[1749382944752,0.6465356,105700.0,105690.0,0.39394795]
[1749382945250,0.6465356,105700.0,105690.0,0.41034783]
[1749382945452,0.6465356,105700.0,105690.0,0.40373832]
[1749382945677,0.6465356,105700.0,105690.0,0.41034779]
[1749382946102,0.6744356,105700.0,105690.0,0.10290696]
[1749382946304,0.69711964,105700.0,105690.0,0.38729832]
[1749382947830,0.69711169,105700.0,105690.0,0.00661832]
[1749382948030,0.69711169,105700.0,105690.0,0.38729832]
[1749382948278,0.68561169,105700.0,105690.0,0.38729832]
[1749382948506,0.6629356,105700.0,105690.0,0.38729832]
[1749382948716,0.6629356,105700.0,105690.0,0.3939084]
[1749382948905,0.6629356,105700.0,105690.0,0.38729832]
[1749382949092,0.6629356,105700.0,105690.0,0.39390854]
[1749382949292,0.6629356,105700.0,105690.0,0.38729832]
[1749382949749,0.66920808,105700.0,105690.0,0.38729832]
[1749382949986,0.6465356,105700.0,105690.0,0.41959832]
[1749382950232,0.6465356,105700.0,105690.0,0.42621238]
[1749382950455,0.6465356,105700.0,105690.0,0.42621244]
[1749382950682,0.6465356,105700.0,105690.0,0.42621218]
[1749382950902,0.6465356,105700.0,105690.0,0.41959832]
[1749382951347,0.6465356,105700.0,105690.0,0.42621211]
[1749382951571,0.6465356,105700.0,105690.0,0.41959832]
[1749382952042,0.6465356,105700.0,105690.0,0.42621211]
[1749382953302,0.6465356,105700.0,105690.0,0.41959832]
[1749382953506,0.6465356,105700.0,105690.0,0.41959379]
[1749382954249,0.6465356,105700.0,105690.0,0.41959377]
[1749382954450,0.6465356,105700.0,105690.0,0.41959376]
[1749382954651,0.6465356,105700.0,105690.0,0.41298]
[1749382954855,0.6465356,105700.0,105690.0,0.41959375]
[1749382955077,0.6465356,105700.0,105690.0,0.41959376]
[1749382955521,0.6465356,105700.0,105690.0,0.41959378]
[1749382956178,0.6465356,105700.0,105690.0,0.41298]
[1749382956397,0.6465356,105700.0,105690.0,0.41959383]
[1749382956597,0.6465356,105700.0,105690.0,0.41298]
[1749382956841,0.6465356,105700.0,105690.0,0.4195938]
[1749382957258,0.6465356,105700.0,105690.0,0.41298]
[1749382957474,0.6465356,105700.0,105690.0,0.41959045]
[1749382958315,0.6465356,105700.0,105690.0,0.41298]
[1749382958753,0.6465356,105700.0,105690.0,0.41959045]
[1749382959405,0.6465356,105700.0,105690.0,0.41959067]
[1749382959604,0.6465356,105700.0,105690.0,0.41959078]
[1749382959816,0.6465356,105700.0,105690.0,0.41298]
[1749382960264,0.6465356,105700.0,105690.0,0.41959093]
[1749382960977,0.6465356,105700.0,105690.0,0.41959073]
[1749382961436,0.6465356,105700.0,105690.0,0.41959394]
[1749382961660,0.6465356,105700.0,105690.0,0.41959393]
[1749382961888,0.6465356,105700.0,105690.0,0.41298]
[1749382962100,0.6465356,105700.0,105690.0,0.41959409]
[1749382962508,0.6465356,105700.0,105690.0,0.41959406]
[1749382963100,0.6465356,105700.0,105690.0,0.41959502]
[1749382963318,0.6465356,105700.0,105690.0,0.41298]
[1749382963528,0.6465356,105700.0,105690.0,0.41959501]
[1749382963835,0.6465356,105700.0,105690.0,0.41298]
[1749382964037,0.6465356,105700.0,105690.0,0.41959502]
[1749382964955,0.6465356,105700.0,105690.0,0.41959488]
[1749382965156,0.6465356,105700.0,105690.0,0.41298]
[1749382965378,0.6465356,105700.0,105690.0,0.41959488]
[1749382965997,0.6465356,105700.0,105690.0,0.41298]
[1749382966306,0.6465356,105700.0,105690.0,0.4195956]
[1749382966672,0.6465356,105700.0,105690.0,0.41298]
[1749382966855,0.6465356,105700.0,105690.0,0.4195956]
[1749382967393,0.6465356,105700.0,105690.0,0.41298]
[1749382967596,0.6465356,105700.0,105690.0,0.4195956]
[1749382968038,0.6465356,105700.0,105690.0,0.41298]
[1749382968266,0.6465356,105700.0,105690.0,0.4195956]
[1749382968647,0.6465356,105700.0,105690.0,0.41298]
[1749382969167,0.6465356,105700.0,105690.0,0.4195956]
[1749382969416,0.6465356,105700.0,105690.0,0.41298]
[1749382969623,0.6465356,105700.0,105690.0,0.4195956]
[1749382970025,0.6465356,105700.0,105690.0,0.41959559]
[1749382970228,0.6465356,105700.0,105690.0,0.41298]
[1749382970567,0.6465356,105700.0,105690.0,0.41959557]
[1749382970917,0.6465356,105700.0,105690.0,0.41298]
[1749382971524,0.6465356,105700.0,105690.0,0.41959557]
[1749382971884,0.6465356,105700.0,105690.0,0.41959558]
[1749382972848,0.6465356,105700.0,105690.0,0.41298]
[1749382973034,0.6465356,105700.0,105690.0,0.41959558]
[1749382973684,0.6465356,105700.0,105690.0,0.41959557]
[1749382973894,0.6465356,105700.0,105690.0,0.41298]
[1749382974035,0.6465356,105700.0,105690.0,0.41959854]
[1749382975257,0.6465356,105700.0,105690.0,0.41959844]
[1749382976117,0.6465356,105700.0,105690.0,0.41298]
[1749382976622,0.6465356,105700.0,105690.0,0.41959845]
[1749382976963,0.6465356,105700.0,105690.0,0.41959846]
[1749382977169,0.6465356,105700.0,105690.0,0.41298]
[1749382977585,0.6465356,105700.0,105690.0,0.41959846]
[1749382977847,0.6465356,105700.0,105690.0,0.41298]
[1749382978278,0.6465356,105700.0,105690.0,0.41959845]
[1749382978390,0.6465356,105700.0,105690.0,0.62775428]
[1749382978836,0.6465356,105700.0,105690.0,0.6277541]
[1749382979044,0.6465356,105700.0,105690.0,0.62113583]
[1749382979320,0.6465356,105700.0,105690.0,0.61167429]
[1749382979951,0.63707496,105700.0,105690.0,0.61829261]
[1749382980158,0.63707496,105700.0,105690.0,0.42905996]
[1749382980808,0.63707496,105700.0,105690.0,0.42905998]
[1749382981010,0.63707496,105700.0,105690.0,0.42244163]
[1749382981215,0.63707496,105700.0,105690.0,0.41959833]
[1749382981424,0.63707496,105700.0,105690.0,0.41959838]
[1749382981632,0.63707496,105700.0,105690.0,0.41959834]
[1749382981804,0.63707496,105700.0,105690.0,0.41959832]
[1749382982061,0.63707496,105700.0,105690.0,0.41959833]
[1749382982725,0.63707496,105700.0,105690.0,0.41959835]
[1749382982932,0.63707496,105700.0,105690.0,0.41298]
[1749382983189,0.63707496,105700.0,105690.0,0.41959835]
[1749382983405,0.63707496,105700.0,105690.0,0.41959908]
[1749382984499,0.63707496,105700.0,105690.0,0.41298]
[1749382984691,0.63707496,105700.0,105690.0,0.41959983]
[1749382984822,0.63707496,105700.0,105690.0,0.41298]
[1749382985232,0.63707496,105700.0,105690.0,0.41959985]
[1749382985956,0.63707496,105700.0,105690.0,0.41959996]
[1749382986156,0.63707496,105700.0,105690.0,0.41298]
[1749382986551,0.63707496,105700.0,105690.0,0.41959991]
[1749382986757,0.63707496,105700.0,105690.0,0.4195999]
[1749382986971,0.63707496,105700.0,105690.0,0.41298]
[1749382987183,0.63707496,105700.0,105690.0,0.41960015]
[1749382988044,0.63707496,105700.0,105690.0,0.41960016]
[1749382988591,0.63707496,105700.0,105690.0,0.4196002]
[1749382988977,0.63707496,105700.0,105690.0,0.41960029]
[1749382989376,0.63707496,105700.0,105690.0,0.41960092]
[1749382989577,0.65978368,105700.0,105690.0,0.41960098]
[1749382989908,0.65978368,105700.0,105690.0,0.41298]
[1749382990512,0.65978368,105700.0,105690.0,0.41960115]
[1749382991521,0.65978368,105700.0,105690.0,0.41298]
[1749382991700,0.65978368,105700.0,105690.0,0.41960177]
[1749382991899,0.65978368,105700.0,105690.0,0.41298]
[1749382992303,0.63707496,105700.0,105690.0,0.4196017]
[1749382992504,0.65978375,105700.0,105690.0,0.4196017]
[1749382993000,0.65978375,105700.0,105690.0,0.41298]
[1749382993406,0.65978375,105700.0,105690.0,0.41960205]
[1749382993610,0.65978375,105700.0,105690.0,0.41298]
[1749382994148,0.65978375,105700.0,105690.0,0.41960204]